bitfinex-derivatives/quotes_BTCF0:USTF0_20230101
["timestamp","ask_amount","ask_price","bid_price","bid_amount"]
[1672603317846,0.37675076,16616.0,16615.0,0.151]
[1672603318056,0.37675076,16616.0,16615.0,0.4517]
[1672603318890,0.37675076,16616.0,16615.0,0.151]
[1672603319097,0.37675076,16616.0,16615.0,0.4517]
[1672603322470,0.37675076,16616.0,16615.0,0.4017]
[1672603334790,0.37675076,16616.0,16615.0,0.40159984]
[1672603344119,0.37675076,16616.0,16615.0,0.10089984]
[1672603380157,0.37675076,16616.0,16615.0,0.10080617]
[1672603390817,0.42675076,16616.0,16615.0,0.10080617]
[1672603392704,0.3007,16617.0,16615.0,0.40150617]
[1672603392705,0.37675076,16617.0,16615.0,0.40150617]
[1672603393025,0.05,16616.0,16615.0,0.40150617]
[1672603394285,0.05,16616.0,16615.0,0.3007]
[1672603394640,0.302,16618.0,16615.0,0.4417]
[1672603394820,0.05,16618.0,16617.0,0.3007]
[1672603396684,0.37675076,16619.0,16618.0,0.05]
[1672603397738,0.37675076,16619.0,16618.0,0.069]
[1672603398164,0.37675076,16619.0,16618.0,0.15]
[1672603398594,0.37675076,16619.0,16618.0,0.069]
[1672603400163,0.37675076,16619.0,16618.0,0.15]
[1672603401742,0.6051,16623.0,16618.0,0.15]
[1672603401953,0.37675076,16620.0,16618.0,0.15]
[1672603402173,0.05,16619.0,16618.0,0.15]
[1672603403210,0.05,16619.0,16618.0,0.3507]
[1672603403444,0.05,16619.0,16618.0,0.4507]
[1672603405733,0.05,16619.0,16618.0,0.3697]
[1672603406040,0.05,16619.0,16618.0,0.3197]
[1672603406256,0.05,16619.0,16618.0,0.4007]
[1672603406687,0.05,16619.0,16618.0,0.3007]
[1672603406888,0.05,16619.0,16618.0,0.3197]
[1672603407098,0.05,16619.0,16618.0,0.019]
[1672603410247,0.05,16619.0,16616.0,0.3007]
[1672603410449,0.05,16619.0,16618.0,0.006]
[1672603410653,0.42675076,16619.0,16618.0,0.006]
[1672603410865,0.42675076,16619.0,16618.0,0.009]
[1672603413283,0.42675076,16619.0,16617.0,0.05]
[1672603413495,0.42675076,16619.0,16618.0,0.006]
[1672603418124,0.05,16619.0,16618.0,0.006]
[1672603418330,0.42675076,16619.0,16618.0,0.006]
[1672603427058,0.42675076,16619.0,16617.0,0.3507]
[1672603427798,0.42675076,16619.0,16617.0,0.04989301]
[1672603428009,0.42675076,16619.0,16617.0,0.35059301]
[1672603428221,0.42675076,16619.0,16617.0,0.36959301]
[1672603429161,0.42675076,16619.0,16617.0,0.3197]
[1672603430633,0.42675076,16619.0,16617.0,0.3007]
[1672603431156,0.42675076,16619.0,16617.0,0.3197]
[1672603432948,0.42675076,16619.0,16617.0,0.3007]
[1672603433364,0.42675076,16619.0,16617.0,0.3197]
[1672603436097,0.42675076,16619.0,16617.0,0.3007]
[1672603436629,0.42675076,16619.0,16617.0,0.3197]
[1672603440719,0.42675076,16619.0,16617.0,0.019]
[1672603441034,0.42675076,16619.0,16617.0,0.3197]
[1672603450705,0.42675076,16619.0,16617.0,0.3007]
[1672603455636,0.42675076,16619.0,16614.0,0.05]
[1672603455958,0.05,16616.0,16615.0,0.3007]
[1672603456894,0.05,16616.0,16615.0,0.4007]
[1672603457326,0.05,16616.0,16615.0,0.3197]
[1672603460789,0.05,16616.0,16615.0,0.3007]
[1672603461001,0.05,16616.0,16615.0,0.4007]
[1672603462783,0.05,16616.0,16615.0,0.3197]
[1672603465307,0.05,16616.0,16615.0,0.4007]
[1672603465623,0.05,16616.0,16615.0,0.3007]
[1672603465829,0.05,16616.0,16615.0,0.3197]
[1672603466251,0.37675076,16617.0,16615.0,0.3197]
[1672603466462,0.37675076,16617.0,16616.0,0.05]
[1672603468569,0.37675076,16617.0,16616.0,0.069]
[1672603471398,0.37675076,16617.0,16616.0,0.15]
[1672603471925,0.05,16619.0,16616.0,0.15]
[1672603472247,0.42675076,16619.0,16617.0,0.3007]
[1672603474138,0.42675076,16619.0,16617.0,0.3197]
[1672603474874,0.42675076,16619.0,16618.0,0.05]
[1672603475913,0.42675076,16619.0,16617.0,0.4007]
[1672603476127,0.42675076,16619.0,16617.0,0.3007]
[1672603477387,0.42675076,16619.0,16617.0,0.30055872]
[1672603477922,0.42675076,16619.0,16617.0,0.31955872]
[1672603478341,0.42675076,16619.0,16617.0,0.40055872]
[1672603483912,0.05,16619.0,16617.0,0.40055872]
[1672603484115,0.42675076,16620.0,16617.0,0.40055872]
[1672603484116,0.37675076,16620.0,16617.0,0.40055872]
[1672603484326,0.37675076,16620.0,16619.0,0.3007]
[1672603485684,0.37675076,16620.0,16619.0,0.4007]
[1672603486950,0.37675076,16620.0,16618.0,0.05]
[1672603487165,0.37675076,16620.0,16619.0,0.4437]
[1672603487375,0.37675076,16620.0,16619.0,0.143]
[1672603487592,0.37675076,16620.0,16619.0,0.3197]
[1672603493579,0.37675076,16620.0,16619.0,0.3007]
[1672603493784,0.37675076,16620.0,16619.0,0.3197]
[1672603493995,0.37675076,16620.0,16619.0,0.3007]
[1672603508934,0.37675076,16620.0,16619.0,0.4007]
[1672603509342,0.37675076,16620.0,16619.0,0.3007]
[1672603510189,0.37675076,16620.0,16619.0,0.3197]
[1672603510709,0.37675076,16620.0,16619.0,0.4007]
[1672603512075,0.37675076,16620.0,16618.0,0.05]
[1672603512076,0.05,16619.0,16618.0,0.05]
[1672603512397,0.05,16619.0,16618.0,0.3507]
[1672603513133,0.05,16619.0,16618.0,0.4937]
[1672603517020,0.37675076,16620.0,16618.0,0.4937]
[1672603518279,0.37675076,16620.0,16618.0,0.4507]
[1672603519124,0.37675076,16620.0,16618.0,0.3507]
[1672603519336,0.37675076,16620.0,16618.0,0.4937]
[1672603524160,0.37675076,16620.0,16619.0,0.3007]
[1672603525644,0.37675076,16620.0,16619.0,0.4007]
[1672603526359,0.37675076,16620.0,16619.0,0.40047531]
[1672603526573,0.37675076,16620.0,16619.0,0.1]
[1672603526784,0.37675076,16620.0,16619.0,0.4007]
[1672603528473,0.37675076,16620.0,16619.0,0.3007]
[1672603528788,0.37675076,16620.0,16619.0,0.3197]
[1672603533618,0.37675076,16620.0,16619.0,0.3007]
[1672603533937,0.37675076,16620.0,16619.0,0.4007]
[1672603542230,0.37675076,16620.0,16619.0,0.4437]
[1672603544240,0.37675076,16620.0,16619.0,0.4007]
[1672603549280,0.37675076,16620.0,16619.0,0.4437]
[1672603549815,0.37675076,16620.0,16619.0,0.4007]
[1672603552852,0.37675076,16620.0,16619.0,0.4437]
[1672603554127,0.37675076,16620.0,16619.0,0.4007]
[1672603559280,0.37664646,16620.0,16619.0,0.4007]
[1672603564020,0.37664646,16620.0,16619.0,0.4437]
[1672603567905,0.37664646,16620.0,16619.0,0.3007]
[1672603568218,0.37664646,16620.0,16619.0,0.4007]
[1672603570525,0.37664646,16620.0,16619.0,0.1]
[1672603570736,0.67734646,16620.0,16619.0,0.1]
[1672603572836,0.67734646,16620.0,16619.0,0.0898]
[1672603573368,0.67734646,16620.0,16619.0,0.0677]
[1672603573577,0.67734646,16620.0,16619.0,0.0416]
[1672603583559,0.37664646,16620.0,16619.0,0.0416]
[1672603624431,0.37664646,16620.0,16619.0,0.04138074]
[1672603627690,0.3007,16621.0,16619.0,0.04138074]
[1672603627903,0.37664646,16620.0,16619.0,0.04138074]
[1672603654182,0.67734646,16620.0,16619.0,0.04138074]
[1672603655450,0.37664646,16620.0,16619.0,0.04138074]
[1672603655654,0.67734646,16620.0,16619.0,0.04138074]
[1672603662277,0.37664646,16620.0,16619.0,0.04138074]
[1672603662484,0.67734646,16620.0,16619.0,0.04138074]
[1672603664686,0.67734646,16620.0,16616.0,0.05]
[1672603664894,0.67734646,16620.0,16619.0,0.002]
[1672603664895,0.3407,16620.0,16619.0,0.002]
[1672603665115,0.71734646,16620.0,16619.0,0.002]
[1672603665316,0.73434646,16620.0,16619.0,0.007]
[1672603671832,0.3577,16620.0,16619.0,0.007]
[1672603672049,0.73434646,16620.0,16619.0,0.007]
[1672603672250,0.73434646,16620.0,16619.0,0.00688009]
[1672603713050,0.43364646,16620.0,16619.0,0.00688009]
[1672603719884,0.43364646,16620.0,16619.0,0.00679619]
[1672603723243,0.73434646,16620.0,16619.0,0.00679619]
[1672603725547,0.43364646,16620.0,16619.0,0.00679619]
[1672603725871,0.73434646,16620.0,16619.0,0.00679619]
[1672603729967,0.43364646,16620.0,16619.0,0.00679619]
[1672603730175,0.73434646,16620.0,16619.0,0.00679619]
[1672603736275,0.05,16619.0,16614.0,0.05]
[1672603736485,0.05,16616.0,16614.0,0.05]
[1672603737645,0.055,16616.0,16614.0,0.135]
[1672603738905,0.055,16616.0,16614.0,0.4357]
[1672603741749,0.055,16616.0,16615.0,0.00017846]
[1672603744468,0.055,16616.0,16615.0,0.08517846]
[1672603745521,0.055,16616.0,16615.0,0.38587846]
[1672603751845,0.055,16616.0,16615.0,0.3857]
[1672603758556,0.055,16616.0,16615.0,0.085]
[1672603758765,0.055,16616.0,16615.0,0.3857]
[1672603766965,0.055,16616.0,16615.0,0.085]
[1672603767494,0.055,16616.0,16615.0,0.3857]
[1672603767913,0.055,16616.0,16615.0,0.085]
[1672603768122,0.055,16616.0,16615.0,0.3857]
[1672603768338,0.055,16616.0,16615.0,0.085]
[1672603768547,0.055,16616.0,16615.0,0.3857]
[1672603770017,0.0548185,16616.0,16615.0,0.3857]
[1672603770221,0.0548185,16616.0,16615.0,0.085]
[1672603770650,0.0548185,16616.0,16615.0,0.3857]
[1672603779161,0.0548185,16616.0,16615.0,0.085]
[1672603782207,0.0558185,16616.0,16615.0,0.078]
[1672603801562,0.43246496,16616.0,16615.0,0.078]
[1672603802609,0.43246496,16616.0,16615.0,0.128]
[1672603804081,0.43246496,16616.0,16615.0,0.4287]
[1672603804608,0.43246496,16616.0,16615.0,0.128]
[1672603804923,0.43246496,16616.0,16615.0,0.4287]
[1672603812390,0.43246496,16616.0,16615.0,0.128]
[1672603812602,0.43246496,16616.0,16615.0,0.4287]
[1672603813861,0.43246496,16616.0,16615.0,0.128]
[1672603814075,0.43246496,16616.0,16615.0,0.3787]
[1672603817870,0.43246496,16616.0,16615.0,0.078]
[1672603818181,0.43246496,16616.0,16615.0,0.3787]
[1672603819645,0.43246496,16616.0,16615.0,0.37857863]
[1672603820584,0.43246496,16616.0,16615.0,0.07787863]
[1672603822378,0.43246496,16616.0,16615.0,0.12787863]
[1672603823427,0.43246496,16616.0,16615.0,0.42857863]
[1672603825003,0.43246496,16616.0,16615.0,0.12787863]
[1672603825221,0.38264646,16616.0,16615.0,0.42857863]
[1672603825425,0.006,16616.0,16615.0,0.42857863]
[1672603825751,0.006,16616.0,16615.0,0.42875709]
[1672603826058,0.99194646,16621.0,16616.0,0.05]
[1672603826257,0.6153,16621.0,16620.0,0.3007]
[1672603826471,0.67694646,16621.0,16620.0,0.3007]
[1672603827211,0.37664646,16621.0,16620.0,0.3007]
[1672603827419,0.43964646,16621.0,16620.0,0.3077]
[1672603828261,0.37664646,16621.0,16620.0,0.3007]
[1672603828580,0.43964646,16621.0,16620.0,0.3077]
[1672603829417,0.37664646,16621.0,16620.0,0.3007]
[1672603829629,0.43964646,16621.0,16620.0,0.3077]
[1672603831307,0.063,16621.0,16620.0,0.3077]
[1672603832990,0.43964646,16621.0,16620.0,0.3077]
[1672603835621,0.063,16621.0,16620.0,0.3077]
[1672603840241,0.113,16621.0,16620.0,0.3077]
[1672603840554,0.063,16621.0,16620.0,0.3077]
[1672603846445,0.063,16621.0,16620.0,0.3577]
[1672603850219,0.43964646,16621.0,16620.0,0.3577]
[1672603851370,0.063,16621.0,16620.0,0.3577]
[1672603855164,0.43964646,16621.0,16620.0,0.3577]
[1672603856207,0.063,16621.0,16620.0,0.3577]
[1672603856845,0.04,16621.0,16620.0,0.3527]
[1672603857997,0.04,16621.0,16620.0,0.3507]
[1672603858228,0.04,16621.0,16620.0,0.3527]
[1672603859054,0.41664646,16621.0,16620.0,0.3527]
[1672603870514,0.11594646,16621.0,16620.0,0.3527]
[1672603870829,0.11594646,16621.0,16620.0,0.44232949]
[1672603871771,0.11594646,16621.0,16620.0,0.44032949]
[1672603871972,0.11694646,16621.0,16620.0,0.52332949]
[1672603872400,0.11694646,16621.0,16620.0,0.4337]
[1672603873451,0.11594646,16621.0,16620.0,0.3507]
[1672603873662,0.11694646,16621.0,16620.0,0.4817]
[1672603893944,0.11694646,16621.0,16620.0,0.181]
[1672603894155,0.11694646,16621.0,16620.0,0.4817]
[1672603896790,0.11694646,16621.0,16620.0,0.181]
[1672603897001,0.11694646,16621.0,16620.0,0.4817]
[1672603897738,0.11694646,16621.0,16620.0,0.181]
[1672603897948,0.11694646,16621.0,16620.0,0.4817]
[1672603914031,0.11694646,16621.0,16620.0,0.181]
[1672603914241,0.11694646,16621.0,16620.0,0.4817]
[1672603915726,0.11694646,16621.0,16620.0,0.48161812]
[1672603916040,0.11694646,16621.0,16620.0,0.18091812]
[1672603916346,0.11694646,16621.0,16620.0,0.48161812]
[1672603917085,0.11694646,16621.0,16620.0,0.4317]
[1672603922020,0.11694646,16621.0,16620.0,0.131]
[1672603922221,0.11694646,16621.0,16620.0,0.4317]
[1672603922858,0.11688329,16621.0,16620.0,0.4317]
[1672603927905,0.11688329,16621.0,16620.0,0.131]
[1672603928117,0.11688329,16621.0,16620.0,0.4317]
[1672603933267,0.00093683,16621.0,16620.0,0.4317]
[1672603933479,0.11688329,16621.0,16620.0,0.4317]
[1672603934739,0.11688329,16621.0,16620.0,0.131]
[1672603935055,0.11688329,16621.0,16620.0,0.4317]
[1672603946723,0.11688329,16621.0,16620.0,0.131]
[1672603946933,0.11688329,16621.0,16620.0,0.4317]
[1672603960506,0.00093683,16621.0,16620.0,0.4317]
[1672603967965,0.00093683,16621.0,16620.0,0.131]
[1672603968277,0.00093683,16621.0,16620.0,0.4317]
[1672603969231,0.00093683,16621.0,16620.0,0.43157863]
[1672603973016,0.00093683,16621.0,16620.0,0.13087863]
[1672603973218,0.00093683,16621.0,16620.0,0.43157863]
[1672603983105,0.00093683,16621.0,16620.0,0.13087863]
[1672603983315,0.00093683,16621.0,16620.0,0.43157863]
[1672603984888,0.00093683,16621.0,16620.0,0.13087863]
[1672603985091,0.00093683,16621.0,16620.0,0.43157863]
[1672603988366,0.00093683,16621.0,16620.0,0.13087863]
[1672603988574,0.00093683,16621.0,16620.0,0.43157863]
[1672604017585,0.00093683,16621.0,16620.0,0.43149918]
[1672604021677,0.00093683,16621.0,16620.0,0.13079918]
[1672604021892,0.00093683,16621.0,16620.0,0.43149918]
[1672604022844,0.00093683,16621.0,16620.0,0.13079918]
[1672604023262,0.00093683,16621.0,16620.0,0.43149918]
[1672604023674,0.00093683,16621.0,16620.0,0.13079918]
[1672604023887,0.00093683,16621.0,16620.0,0.43149918]
[1672604025889,0.00093683,16621.0,16620.0,0.13079918]
[1672604026303,0.00093683,16621.0,16620.0,0.43149918]
[1672604043227,0.16594646,16622.0,16620.0,0.4417]
[1672604043437,0.16594646,16622.0,16621.0,0.05]
[1672604045022,0.16594646,16622.0,16621.0,0.11]
[1672604047017,0.16594646,16622.0,16621.0,0.06]
[1672604055744,0.16594646,16622.0,16621.0,0.3607]
[1672604060784,0.16594646,16622.0,16621.0,0.06]
[1672604060995,0.16594646,16622.0,16621.0,0.3607]
[1672604061616,0.16594646,16622.0,16621.0,0.06]
[1672604061826,0.16594646,16622.0,16621.0,0.3607]
[1672604062779,0.16594646,16622.0,16621.0,0.06]
[1672604063097,0.16594646,16622.0,16621.0,0.3607]
[1672604071818,0.16594646,16622.0,16621.0,0.36050365]
[1672604080435,0.16594646,16622.0,16621.0,0.05980365]
[1672604080640,0.16594646,16622.0,16621.0,0.36050365]
[1672604082119,0.16594646,16622.0,16621.0,0.45081823]
[1672604083580,0.16594646,16622.0,16621.0,0.15011823]
[1672604083792,0.16594646,16622.0,16621.0,0.45081823]
[1672604084839,0.16594646,16622.0,16621.0,0.05980365]
[1672604085270,0.16594646,16622.0,16621.0,0.36050365]
[1672604089040,0.16594646,16622.0,16621.0,0.05980365]
[1672604101983,0.16578528,16622.0,16621.0,0.05980365]
[1672604109773,0.16578528,16622.0,16621.0,0.36050365]
[1672604115656,0.16578528,16622.0,16621.0,0.05980365]
[1672604118715,0.16578528,16622.0,16621.0,0.36050365]
[1672604119438,0.16578528,16622.0,16621.0,0.05980365]
[1672604119862,0.16578528,16622.0,16621.0,0.36050365]
[1672604120488,0.16578528,16622.0,16621.0,0.05980365]
[1672604120698,0.16578528,16622.0,16621.0,0.36050365]
[1672604131847,0.04983882,16622.0,16621.0,0.36050365]
[1672604132059,0.16578528,16622.0,16621.0,0.36050365]
[1672604134572,0.16578528,16622.0,16621.0,0.05980365]
[1672604134781,0.16578528,16622.0,16621.0,0.36050365]
[1672604138466,0.16578528,16622.0,16621.0,0.05980365]
[1672604138676,0.16578528,16622.0,16621.0,0.36050365]
[1672604148666,0.11594646,16622.0,16621.0,0.36050365]
[1672604150974,0.11594646,16622.0,16621.0,0.05980365]
[1672604151182,0.11594646,16622.0,16621.0,0.36050365]
[1672604151818,0.16594646,16625.0,16621.0,0.36050365]
[1672604152029,0.16594646,16625.0,16623.0,0.3007]
[1672604154026,0.16594646,16625.0,16623.0,0.3027]
[1672604155290,0.16594646,16625.0,16623.0,0.30247994]
[1672604158026,0.11594646,16625.0,16624.0,0.05]
[1672604159179,0.11594646,16625.0,16624.0,0.052]
[1672604160246,0.11594646,16625.0,16624.0,0.05]
[1672604160453,0.11594646,16625.0,16624.0,0.058]
[1672604161189,0.11594646,16625.0,16624.0,0.3507]
[1672604161397,0.11594646,16625.0,16624.0,0.3527]
[1672604163825,0.11594646,16625.0,16624.0,0.052]
[1672604164249,0.11594646,16625.0,16624.0,0.3527]
[1672604167713,0.11594646,16625.0,16624.0,0.052]
[1672604167915,0.11594646,16625.0,16624.0,0.3527]
[1672604168878,0.11594646,16625.0,16624.0,0.052]
[1672604169184,0.11594646,16625.0,16624.0,0.3527]
[1672604174448,0.11594646,16625.0,16624.0,0.052]
[1672604174768,0.11594646,16625.0,16624.0,0.3527]
[1672604176154,0.11594646,16625.0,16624.0,0.3027]
[1672604193682,0.11594646,16625.0,16624.0,0.002]
[1672604193898,0.11594646,16625.0,16624.0,0.3027]
[1672604194526,0.11594646,16625.0,16624.0,0.002]
[1672604199247,0.11594646,16625.0,16624.0,0.3027]
[1672604200507,0.3507,16626.0,16624.0,0.3027]
[1672604200713,0.46664646,16626.0,16624.0,0.3027]
[1672604200916,0.16594646,16626.0,16624.0,0.3027]
[1672604201553,0.16594646,16626.0,16625.0,0.05]
[1672604201876,0.16594646,16626.0,16624.0,0.3027]
[1672604207318,0.46664646,16626.0,16624.0,0.3027]
[1672604208058,0.46664646,16626.0,16624.0,0.002]
[1672604208268,0.46664646,16626.0,16624.0,0.052]
[1672604209113,0.46664646,16626.0,16624.0,0.05]
[1672604209950,0.46664646,16626.0,16624.0,0.04984234]
[1672604210578,0.46664646,16626.0,16623.0,0.3007]
[1672604210895,0.11594646,16624.0,16623.0,0.3007]
[1672604212159,0.11594646,16624.0,16623.0,0.3587]
[1672604226028,0.11594646,16624.0,16623.0,0.058]
[1672604226233,0.11594646,16624.0,16623.0,0.3587]
[1672604239906,0.11594646,16625.0,16623.0,0.3587]
[1672604240118,0.11594646,16625.0,16624.0,0.05]
[1672604260385,0.05,16624.0,16623.0,0.3007]
[1672604261117,0.05,16624.0,16622.0,0.05]
[1672604261334,0.0002189,16623.0,16622.0,0.05]
[1672604261540,0.0002189,16623.0,16622.0,0.3507]
[1672604261961,0.0002189,16623.0,16622.0,0.05]
[1672604262172,0.0002189,16623.0,16622.0,0.3507]
[1672604263122,0.0002189,16623.0,16622.0,0.4947]
[1672604266273,0.0002189,16623.0,16622.0,0.49451227]
[1672604266483,0.0002189,16623.0,16622.0,0.19381227]
[1672604266798,0.0002189,16623.0,16622.0,0.49451227]
[1672604272468,0.0002189,16623.0,16622.0,0.19381227]
[1672604272679,0.0002189,16623.0,16622.0,0.49451227]
[1672604274465,0.0002189,16623.0,16622.0,0.19381227]
[1672604274680,0.0002189,16623.0,16622.0,0.49451227]
[1672604275833,0.0002189,16623.0,16622.0,0.19381227]
[1672604276145,0.0002189,16623.0,16622.0,0.49451227]
[1672604279297,0.11616536,16623.0,16622.0,0.49451227]
[1672604281509,0.0002189,16623.0,16622.0,0.49451227]
[1672604288048,0.0002189,16623.0,16622.0,0.19381227]
[1672604288255,0.0002189,16623.0,16622.0,0.49451227]
[1672604290261,2.32e-06,16623.0,16622.0,0.19381227]
[1672604290472,2.32e-06,16623.0,16622.0,0.49451227]
[1672604290798,2.32e-06,16623.0,16622.0,0.19381227]
[1672604291007,2.32e-06,16623.0,16622.0,0.49451227]
[1672604291957,2.32e-06,16623.0,16622.0,0.19381227]
[1672604292169,2.32e-06,16623.0,16622.0,0.49451227]
[1672604292580,2.32e-06,16623.0,16622.0,0.19381227]
[1672604293001,2.32e-06,16623.0,16622.0,0.49451227]
[1672604294053,2.32e-06,16623.0,16622.0,0.19381227]
[1672604294268,2.32e-06,16623.0,16622.0,0.49451227]
[1672604295217,2.32e-06,16623.0,16622.0,0.19381227]
[1672604295747,2.32e-06,16623.0,16622.0,0.49451227]
[1672604297524,2.32e-06,16623.0,16622.0,0.19381227]
[1672604297737,2.32e-06,16623.0,16622.0,0.49451227]
[1672604301520,2.32e-06,16623.0,16622.0,0.19381227]
[1672604301742,2.32e-06,16623.0,16622.0,0.49451227]
[1672604302785,2.32e-06,16623.0,16622.0,0.19381227]
[1672604302987,2.32e-06,16623.0,16622.0,0.49451227]
[1672604303202,2.32e-06,16623.0,16622.0,0.19381227]
[1672604303670,2.32e-06,16623.0,16622.0,0.49451227]
[1672604306153,2.32e-06,16623.0,16622.0,0.19381227]
[1672604306452,2.32e-06,16623.0,16622.0,0.49451227]
[1672604313186,2.32e-06,16623.0,16622.0,0.35051227]
[1672604313400,2.32e-06,16623.0,16622.0,0.49051227]
[1672604313607,2.32e-06,16623.0,16622.0,0.35051227]
[1672604313816,2.32e-06,16623.0,16622.0,0.49251227]
[1672604318008,2.32e-06,16623.0,16622.0,0.19181227]
[1672604318320,2.32e-06,16623.0,16622.0,0.49251227]
[1672604321053,2.32e-06,16623.0,16622.0,0.19181227]
[1672604321372,2.32e-06,16623.0,16622.0,0.49251227]
[1672604329367,2.32e-06,16623.0,16622.0,0.19181227]
[1672604329671,2.32e-06,16623.0,16622.0,0.49251227]
[1672604330407,2.32e-06,16623.0,16622.0,0.19181227]
[1672604330611,2.32e-06,16623.0,16622.0,0.49251227]
[1672604333462,2.32e-06,16623.0,16622.0,0.19181227]
[1672604333667,2.32e-06,16623.0,16622.0,0.49251227]
[1672604335358,2.32e-06,16623.0,16622.0,0.19181227]
[1672604335569,2.32e-06,16623.0,16622.0,0.49051227]
[1672604336930,2.32e-06,16623.0,16622.0,0.35051227]
[1672604337150,2.32e-06,16623.0,16622.0,0.49251227]
[1672604341021,2.32e-06,16623.0,16622.0,0.19181227]
[1672604341238,2.32e-06,16623.0,16622.0,0.49251227]
[1672604341443,2.32e-06,16623.0,16622.0,0.49231684]
[1672604342929,2.32e-06,16623.0,16622.0,0.19161684]
[1672604343136,2.32e-06,16623.0,16622.0,0.49231684]
[1672604349967,2.32e-06,16623.0,16622.0,0.19161684]
[1672604350182,2.32e-06,16623.0,16622.0,0.49231684]
[1672604353759,2.32e-06,16623.0,16622.0,1.09391684]
[1672604355122,2.32e-06,16623.0,16622.0,0.95191684]
[1672604355331,2.32e-06,16623.0,16622.0,1.09191684]
[1672604359643,2.32e-06,16623.0,16622.0,0.95191684]
[1672604359846,2.32e-06,16623.0,16622.0,0.49231684]
[1672604361313,2.32e-06,16623.0,16622.0,1.09391684]
[1672604362692,2.32e-06,16623.0,16622.0,0.79321684]
[1672604362895,2.32e-06,16623.0,16622.0,1.09391684]
[1672604363106,2.32e-06,16623.0,16622.0,1.09191684]
[1672604363317,2.32e-06,16623.0,16622.0,1.18217705]
[1672604363638,2.32e-06,16623.0,16622.0,0.88147705]
[1672604363850,0.11594878,16623.0,16622.0,1.18217705]
[1672604364060,0.11594878,16623.0,16622.0,1.09191684]
[1672604367946,0.11594878,16623.0,16622.0,0.79121684]
[1672604368154,0.11594878,16623.0,16622.0,1.09191684]
[1672604370456,0.11594878,16623.0,16622.0,1.18220064]
[1672604373307,0.11594878,16623.0,16622.0,1.09191684]
[1672604376977,0.11594878,16623.0,16622.0,0.79121684]
[1672604377189,0.11594878,16623.0,16622.0,1.09191684]
[1672604377610,0.11594878,16623.0,16622.0,0.79121684]
[1672604378239,0.11594878,16623.0,16622.0,1.09191684]
[1672604379393,0.11594878,16623.0,16622.0,0.79121684]
[1672604379603,0.11594878,16623.0,16622.0,1.09191684]
[1672604380446,0.11594878,16623.0,16622.0,0.79121684]
[1672604380655,0.11594878,16623.0,16622.0,1.09191684]
[1672604380866,0.11594878,16623.0,16622.0,0.79121684]
[1672604381075,0.11594878,16623.0,16622.0,1.09191684]
[1672604382864,0.11594878,16623.0,16622.0,0.79121684]
[1672604383066,0.11594878,16623.0,16622.0,1.09191684]
[1672604385492,0.11594878,16623.0,16622.0,0.95191684]
[1672604385692,0.11594878,16623.0,16622.0,1.09191684]
[1672604386531,0.11594646,16623.0,16622.0,1.09168563]
[1672604392738,0.11594646,16623.0,16622.0,0.79098563]
[1672604392941,0.11594646,16623.0,16622.0,1.09168563]
[1672604393898,0.11594646,16623.0,16622.0,0.79098563]
[1672604394108,0.11594646,16623.0,16622.0,1.09168563]
[1672604395056,0.11594646,16623.0,16622.0,0.79098563]
[1672604395263,0.11594646,16623.0,16622.0,1.09168563]
[1672604396426,0.11594646,16623.0,16622.0,0.79098563]
[1672604396618,0.11594646,16623.0,16622.0,1.09168563]
[1672604407555,0.11594646,16623.0,16622.0,0.79098563]
[1672604407767,0.11594646,16623.0,16622.0,1.09168563]
[1672604408081,0.11594646,16623.0,16622.0,0.79098563]
[1672604408295,0.11594646,16623.0,16622.0,1.09168563]
[1672604411869,0.11594646,16623.0,16622.0,0.79098563]
[1672604412081,0.05,16626.0,16622.0,1.09168563]
[1672604412280,0.11594646,16623.0,16622.0,0.79098563]
[1672604412486,0.11594646,16623.0,16622.0,1.09168563]
[1672604418587,0.11571971,16623.0,16622.0,1.09168563]
[1672604419648,0.11571971,16623.0,16622.0,0.95168563]
[1672604419960,0.11571971,16623.0,16622.0,1.09168563]
[1672604422900,0.11571971,16623.0,16622.0,0.95168563]
[1672604423220,0.11571971,16623.0,16622.0,1.09168563]
[1672604428778,0.11571971,16623.0,16622.0,0.79098563]
[1672604428993,0.11571971,16623.0,16622.0,1.09168563]
[1672604430056,0.11571971,16623.0,16622.0,0.79098563]
[1672604430258,0.11571971,16623.0,16622.0,1.09168563]
[1672604431422,0.11571971,16623.0,16622.0,0.79098563]
[1672604432050,0.11571971,16623.0,16622.0,1.09168563]
[1672604436043,0.11571971,16623.0,16622.0,0.79098563]
[1672604436248,0.11571971,16623.0,16622.0,1.09168563]
[1672604440348,0.11571971,16623.0,16622.0,0.79098563]
[1672604440552,0.11571971,16623.0,16622.0,1.09168563]
[1672604441301,0.11571971,16623.0,16622.0,0.79098563]
[1672604441512,0.11571971,16623.0,16622.0,1.09168563]
[1672604441820,0.11571971,16623.0,16622.0,0.49008563]
[1672604443499,0.11571971,16623.0,16622.0,0.18938563]
[1672604443712,0.11571971,16623.0,16622.0,0.49008563]
[1672604445085,0.11571971,16623.0,16622.0,0.18938563]
[1672604445300,0.11571971,16623.0,16622.0,0.49008563]
[1672604446231,0.11571971,16623.0,16622.0,0.18938563]
[1672604446752,0.11571971,16623.0,16622.0,0.49008563]
[1672604457587,0.11571971,16623.0,16622.0,0.18938563]
[1672604457796,0.11571971,16623.0,16622.0,0.49008563]
[1672604461052,0.11571971,16623.0,16622.0,0.18938563]
[1672604461373,0.11571971,16623.0,16622.0,0.49008563]
[1672604463051,0.11571971,16623.0,16622.0,0.48991011]
[1672604473895,0.11571971,16623.0,16622.0,0.18921011]
[1672604474205,0.11571971,16623.0,16622.0,0.48991011]
[1672604474840,0.11571971,16623.0,16622.0,0.18921011]
[1672604475368,0.11571971,16623.0,16622.0,0.48991011]
[1672604483345,0.11571971,16623.0,16622.0,0.18921011]
[1672604483554,0.11571971,16623.0,16622.0,0.48991011]
[1672604484711,0.11571971,16623.0,16622.0,0.18921011]
[1672604484922,0.11571971,16623.0,16622.0,0.48991011]
[1672604508385,0.11571971,16623.0,16622.0,0.18921011]
[1672604509117,0.11571971,16623.0,16622.0,0.48991011]
[1672604509321,0.11571971,16623.0,16622.0,0.18921011]
[1672604509533,0.11571971,16623.0,16622.0,0.48991011]
[1672604510058,0.11571971,16623.0,16622.0,0.18921011]
[1672604510266,0.11571971,16623.0,16622.0,0.48991011]
[1672604512058,0.11571971,16623.0,16622.0,0.48974375]
[1672604516363,0.11571971,16623.0,16622.0,0.18904375]
[1672604516573,0.11571971,16623.0,16622.0,0.48974375]